[Event "Betsys MČR v online bleskovém šachu 2021"]
[Site "Chess.com"]
[Date "2021.04.17"]
[Round "3"]
[White "CrisBenton4"]
[Black "DenisaD2008"]
[Result "1-0"]
[WhiteElo "1425"]
[BlackElo "978"]
[TimeControl "180+1"]
[EndTime "9:27:07 PDT"]
[Termination "Uživatel CrisBenton4 zvítězil matem"]

1. Nf3 {[%clk 0:03:00.9]} 1... Nc6 {[%clk 0:02:58.7]} 2. g3 {[%clk 0:03:00.7]}
2... e5 {[%clk 0:02:56.7]} 3. d3 {[%clk 0:03:00.2]} 3... d5 {[%clk 0:02:54.8]}
4. Bg2 {[%clk 0:03:00.4]} 4... Nf6 {[%clk 0:02:53.5]} 5. O-O {[%clk 0:03:00.1]}
5... Be6 {[%clk 0:02:53]} 6. Nbd2 {[%clk 0:02:57.5]} 6... Bd6 {[%clk 0:02:52.7]}
7. c4 {[%clk 0:02:55.2]} 7... dxc4 {[%clk 0:02:51.5]} 8. Nxc4 {[%clk 0:02:53.7]}
8... Bc5 {[%clk 0:02:48]} 9. a3 {[%clk 0:02:47.9]} 9... O-O {[%clk 0:02:45.6]}
10. b4 {[%clk 0:02:47.1]} 10... Bd4 {[%clk 0:02:44.8]} 11. Nxd4 {[%clk
0:02:44.6]} 11... Nxd4 {[%clk 0:02:44.6]} 12. Bxb7 {[%clk 0:02:38.1]} 12... Rb8
{[%clk 0:02:44]} 13. Bg2 {[%clk 0:02:35.5]} 13... Qd7 {[%clk 0:02:40.2]} 14.
Nxe5 {[%clk 0:02:31.5]} 14... Qc8 {[%clk 0:02:35.2]} 15. Bb2 {[%clk 0:02:24.9]}
15... Nb3 {[%clk 0:02:32.9]} 16. Rb1 {[%clk 0:02:15.4]} 16... c5 {[%clk
0:02:28.3]} 17. Nc4 {[%clk 0:02:12.9]} 17... cxb4 {[%clk 0:02:25.5]} 18. Qxb3
{[%clk 0:02:09.4]} 18... Bxc4 {[%clk 0:02:23.2]} 19. dxc4 {[%clk 0:02:07.6]}
19... bxa3 {[%clk 0:02:21.7]} 20. Qxa3 {[%clk 0:02:07.1]} 20... Qxc4 {[%clk
0:02:18.8]} 21. Bxf6 {[%clk 0:02:00]} 21... gxf6 {[%clk 0:02:16.6]} 22. Qxa7
{[%clk 0:01:50.1]} 22... Rxb1 {[%clk 0:02:14.8]} 23. Rxb1 {[%clk 0:01:48]} 23...
Qxe2 {[%clk 0:02:14.1]} 24. Qe3 {[%clk 0:01:40.8]} 24... Qc2 {[%clk 0:02:11.8]}
25. Rc1 {[%clk 0:01:38]} 25... Qb2 {[%clk 0:02:10.6]} 26. Qf4 {[%clk 0:01:31.5]}
26... h5 {[%clk 0:02:04.5]} 27. Re1 {[%clk 0:01:27.3]} 27... Qc3 {[%clk
0:02:00.9]} 28. Qe3 {[%clk 0:01:21.1]} 28... Qb4 {[%clk 0:01:59.2]} 29. Bf1
{[%clk 0:01:16.7]} 29... f5 {[%clk 0:01:57.1]} 30. Bd3 {[%clk 0:01:04.2]} 30...
Qa5 {[%clk 0:01:50.6]} 31. Qg5+ {[%clk 0:01:00.4]} 31... Kh8 {[%clk 0:01:44.7]}
32. Qxh5+ {[%clk 0:00:56.8]} 32... Kg7 {[%clk 0:01:39.5]} 33. Qg5+ {[%clk
0:00:52.9]} 33... Kh8 {[%clk 0:01:36.8]} 34. Qe3 {[%clk 0:00:38.6]} 34... Rg8
{[%clk 0:01:31.9]} 35. Qe5+ {[%clk 0:00:38.2]} 35... Qxe5 {[%clk 0:01:24.4]} 36.
Rxe5 {[%clk 0:00:38.8]} 36... f6 {[%clk 0:01:24.2]} 37. Rxf5 {[%clk 0:00:37.2]}
37... Kh7 {[%clk 0:01:22.7]} 38. Rxf6+ {[%clk 0:00:31.1]} 38... Kg7 {[%clk
0:01:23]} 39. Rg6+ {[%clk 0:00:30.6]} 39... Kf8 {[%clk 0:01:21.1]} 40. Rxg8+
{[%clk 0:00:30.8]} 40... Kxg8 {[%clk 0:01:20.8]} 41. Kg2 {[%clk 0:00:31.5]}
41... Kg7 {[%clk 0:01:20.7]} 42. Kf3 {[%clk 0:00:31.9]} 42... Kf6 {[%clk
0:01:21]} 43. Kf4 {[%clk 0:00:32.1]} 43... Kf7 {[%clk 0:01:19.9]} 44. Kf5 {[%clk
0:00:32.4]} 44... Kg7 {[%clk 0:01:19.4]} 45. h4 {[%clk 0:00:32.4]} 45... Kf7
{[%clk 0:01:19]} 46. h5 {[%clk 0:00:32.3]} 46... Kg7 {[%clk 0:01:19.3]} 47. g4
{[%clk 0:00:31.1]} 47... Kh6 {[%clk 0:01:19.4]} 48. f4 {[%clk 0:00:31]} 48...
Kg7 {[%clk 0:01:18.8]} 49. g5 {[%clk 0:00:29.8]} 49... Kh7 {[%clk 0:01:17.7]}
50. Kf6+ {[%clk 0:00:27.7]} 50... Kg8 {[%clk 0:01:16.4]} 51. g6 {[%clk
0:00:26.4]} 51... Kf8 {[%clk 0:01:16.1]} 52. h6 {[%clk 0:00:21.8]} 52... Kg8
{[%clk 0:01:16.3]} 53. Bc4+ {[%clk 0:00:21]} 53... Kh8 {[%clk 0:01:08.9]} 54.
g7+ {[%clk 0:00:21]} 54... Kh7 {[%clk 0:01:08.4]} 55. Bd3+ {[%clk 0:00:21.2]}
55... Kxh6 {[%clk 0:01:07.6]} 56. g8=Q {[%clk 0:00:20.8]} 56... Kh5 {[%clk
0:01:07.1]} 57. Be2+ {[%clk 0:00:20.8]} 57... Kh4 {[%clk 0:01:06]} 58. Qg4#
{[%clk 0:00:19.3]} 1-0

[Event "Betsys MČR v online bleskovém šachu 2021"]
[Site "Chess.com"]
[Date "2021.04.17"]
[Round "3"]
[White "karimaster100"]
[Black "NeumanPetr"]
[Result "1-0"]
[WhiteElo "2224"]
[BlackElo "2491"]
[TimeControl "180+1"]
[EndTime "9:27:09 PDT"]
[Termination "Uživatel karimaster100 zvítězil na čas"]

1. Nf3 {[%clk 0:03:00.9]} 1... d5 {[%clk 0:02:55.4]} 2. g3 {[%clk 0:03:00.2]}
2... g6 {[%clk 0:02:55.8]} 3. Bg2 {[%clk 0:02:59.9]} 3... Bg7 {[%clk 0:02:56.7]}
4. d4 {[%clk 0:02:59.8]} 4... Nf6 {[%clk 0:02:57.4]} 5. O-O {[%clk 0:02:59.9]}
5... O-O {[%clk 0:02:58.3]} 6. c4 {[%clk 0:02:58.9]} 6... c6 {[%clk 0:02:58.6]}
7. b3 {[%clk 0:02:58.4]} 7... dxc4 {[%clk 0:02:54.2]} 8. bxc4 {[%clk 0:02:57.8]}
8... c5 {[%clk 0:02:55.1]} 9. Bb2 {[%clk 0:02:55.1]} 9... Qb6 {[%clk 0:02:51.4]}
10. Qc1 {[%clk 0:02:34]} 10... Ne4 {[%clk 0:02:43.5]} 11. e3 {[%clk 0:02:28]}
11... Nc6 {[%clk 0:02:35.8]} 12. Nc3 {[%clk 0:01:49.9]} 12... Nxc3 {[%clk
0:02:23.7]} 13. Bxc3 {[%clk 0:01:38.3]} 13... cxd4 {[%clk 0:02:19.9]} 14. exd4
{[%clk 0:01:22.4]} 14... Nxd4 {[%clk 0:01:16.2]} 15. Bxd4 {[%clk 0:01:15.2]}
15... Bxd4 {[%clk 0:01:16.5]} 16. Rb1 {[%clk 0:01:15.2]} 16... Qf6 {[%clk
0:01:14.4]} 17. Nxd4 {[%clk 0:01:12.6]} 17... Qxd4 {[%clk 0:01:14.5]} 18. Bxb7
{[%clk 0:01:10.8]} 18... Rb8 {[%clk 0:01:07.3]} 19. Bxc8 {[%clk 0:01:02.4]}
19... Rbxc8 {[%clk 0:01:05.4]} 20. Rd1 {[%clk 0:00:54]} 20... Qc5 {[%clk
0:00:59.1]} 21. Rb7 {[%clk 0:00:45.1]} 21... Rfd8 {[%clk 0:00:52.3]} 22. Rxd8+
{[%clk 0:00:35.4]} 22... Rxd8 {[%clk 0:00:52]} 23. Rb5 {[%clk 0:00:34.9]} 23...
Qc6 {[%clk 0:00:49.1]} 24. Rb3 {[%clk 0:00:26.2]} 24... h5 {[%clk 0:00:44.2]}
25. h4 {[%clk 0:00:25.2]} 25... Rd4 {[%clk 0:00:32]} 26. c5 {[%clk 0:00:24.7]}
26... Qd5 {[%clk 0:00:26.2]} 27. Rb1 {[%clk 0:00:21.4]} 27... Rc4 {[%clk
0:00:12.1]} 28. Qh6 {[%clk 0:00:18.8]} 28... Qd8 {[%clk 0:00:12]} 29. Qe3 {[%clk
0:00:17.9]} 29... e6 {[%clk 0:00:06]} 30. Rc1 {[%clk 0:00:18.2]} 30... Rxc1+
{[%clk 0:00:05.2]} 31. Qxc1 {[%clk 0:00:18.1]} 31... Qc7 {[%clk 0:00:05.9]} 32.
Qc4 {[%clk 0:00:17.9]} 32... Qc6 {[%clk 0:00:04]} 33. a4 {[%clk 0:00:17.5]}
33... Kf8 {[%clk 0:00:04.5]} 34. Qb5 {[%clk 0:00:17.4]} 34... Qf3 {[%clk
0:00:03]} 35. c6 {[%clk 0:00:16.1]} 1-0

[Event "Betsys MČR v online bleskovém šachu 2021"]
[Site "Chess.com"]
[Date "2021.04.17"]
[Round "3"]
[White "adasmrazek"]
[Black "pudltomik"]
[Result "1-0"]
[WhiteElo "1324"]
[BlackElo "763"]
[TimeControl "180+1"]
[EndTime "9:27:09 PDT"]
[Termination "Uživatel adasmrazek zvítězil matem"]

1. d4 {[%clk 0:02:48.9]} 1... d6 {[%clk 0:02:58.6]} 2. e4 {[%clk 0:02:47.9]}
2... f6 {[%clk 0:02:53.1]} 3. Nf3 {[%clk 0:02:47.1]} 3... e5 {[%clk 0:02:52]} 4.
Nc3 {[%clk 0:02:41.3]} 4... Bg4 {[%clk 0:02:50.1]} 5. d5 {[%clk 0:02:36.5]} 5...
Na6 {[%clk 0:02:41.6]} 6. Be3 {[%clk 0:02:26.1]} 6... Nb4 {[%clk 0:02:34.3]} 7.
Be2 {[%clk 0:02:14.9]} 7... b6 {[%clk 0:02:31.9]} 8. O-O {[%clk 0:02:14.2]} 8...
h5 {[%clk 0:02:30.4]} 9. h3 {[%clk 0:02:11]} 9... Bxf3 {[%clk 0:02:19.7]} 10.
Bxf3 {[%clk 0:02:09.9]} 10... g6 {[%clk 0:02:06.7]} 11. a3 {[%clk 0:02:02.1]}
11... Na6 {[%clk 0:02:01]} 12. b4 {[%clk 0:01:41.7]} 12... Qd7 {[%clk
0:01:58.7]} 13. Be2 {[%clk 0:01:28.9]} 13... Nb8 {[%clk 0:01:47.1]} 14. Bb5
{[%clk 0:01:25.1]} 14... c6 {[%clk 0:01:37.7]} 15. dxc6 {[%clk 0:01:26]} 15...
Nxc6 {[%clk 0:01:37.4]} 16. Qd5 {[%clk 0:01:22.7]} 16... Nge7 {[%clk 0:01:33.4]}
17. Bxc6 {[%clk 0:01:12.6]} 17... Nxc6 {[%clk 0:01:29.1]} 18. b5 {[%clk
0:01:07.8]} 18... Rc8 {[%clk 0:01:16.2]} 19. bxc6 {[%clk 0:01:06.6]} 19... Rxc6
{[%clk 0:01:15.6]} 20. Nb5 {[%clk 0:00:51.6]} 20... a6 {[%clk 0:01:10.8]} 21. a4
{[%clk 0:00:18.8]} 21... axb5 {[%clk 0:01:09.3]} 22. axb5 {[%clk 0:00:19.6]}
22... Rc7 {[%clk 0:01:05.4]} 23. Ra8+ {[%clk 0:00:19.7]} 23... Ke7 {[%clk
0:01:02.8]} 24. Bxb6 {[%clk 0:00:19.9]} 24... Bg7 {[%clk 0:00:59.2]} 25. Bxc7
{[%clk 0:00:19.2]} 25... Rxa8 {[%clk 0:00:57.3]} 26. Qxa8 {[%clk 0:00:16.1]}
26... Qxc7 {[%clk 0:00:56.8]} 27. Ra1 {[%clk 0:00:15.4]} 27... Qd7 {[%clk
0:00:55.2]} 28. Ra7 {[%clk 0:00:15.3]} 28... Ke6 {[%clk 0:00:51.2]} 29. Rxd7
{[%clk 0:00:15.2]} 29... Kxd7 {[%clk 0:00:50.7]} 30. Qc6+ {[%clk 0:00:15.7]}
30... Ke7 {[%clk 0:00:50.2]} 31. b6 {[%clk 0:00:16.5]} 31... Ke6 {[%clk
0:00:49.7]} 32. b7 {[%clk 0:00:17.4]} 32... f5 {[%clk 0:00:48.7]} 33. b8=Q
{[%clk 0:00:18.3]} 33... fxe4 {[%clk 0:00:46.4]} 34. Qbe8+ {[%clk 0:00:15.2]}
34... Kf5 {[%clk 0:00:46.3]} 35. Qf7+ {[%clk 0:00:12.8]} 35... Kg5 {[%clk
0:00:46.2]} 36. Qe7+ {[%clk 0:00:11.2]} 36... Kh6 {[%clk 0:00:45.7]} 37. Qcxd6
{[%clk 0:00:08.7]} 37... h4 {[%clk 0:00:42.8]} 38. Qdd7 {[%clk 0:00:05.3]} 38...
Kh5 {[%clk 0:00:41.8]} 39. Qxg7 {[%clk 0:00:03.2]} 39... Kg5 {[%clk 0:00:41.6]}
40. g4 {[%clk 0:00:02.9]} 40... Kf4 {[%clk 0:00:41.5]} 41. Qdf7+ {[%clk
0:00:02.7]} 41... Kg5 {[%clk 0:00:32.7]} 42. Qgxg6# {[%clk 0:00:03.2]} 1-0

[Event "Betsys MČR v online bleskovém šachu 2021"]
[Site "Chess.com"]
[Date "2021.04.17"]
[Round "3"]
[White "masterofbuzkashi"]
[Black "5265"]
[Result "0-1"]
[WhiteElo "2253"]
[BlackElo "1627"]
[TimeControl "180+1"]
[EndTime "9:27:10 PDT"]
[Termination "Uživatel 5265 zvítězil po vzdání soupeře"]

1. d4 {[%clk 0:02:55.7]} 1... d5 {[%clk 0:02:59.4]} 2. c4 {[%clk 0:02:56.4]}
2... e6 {[%clk 0:02:59.4]} 3. Nc3 {[%clk 0:02:57.1]} 3... c5 {[%clk 0:02:59.8]}
4. Nf3 {[%clk 0:02:57.7]} 4... Nc6 {[%clk 0:02:58.9]} 5. e3 {[%clk 0:02:57.6]}
5... Nf6 {[%clk 0:02:58.8]} 6. Be2 {[%clk 0:02:57.4]} 6... Bd6 {[%clk 0:02:59]}
7. O-O {[%clk 0:02:57.2]} 7... O-O {[%clk 0:02:59]} 8. b3 {[%clk 0:02:57.3]}
8... dxc4 {[%clk 0:02:58.7]} 9. bxc4 {[%clk 0:02:56.5]} 9... cxd4 {[%clk
0:02:58.8]} 10. exd4 {[%clk 0:02:56.1]} 10... Qc7 {[%clk 0:02:59]} 11. h3 {[%clk
0:02:51.1]} 11... b6 {[%clk 0:02:56.1]} 12. Nb5 {[%clk 0:02:47.2]} 12... Qb8
{[%clk 0:02:55.2]} 13. a4 {[%clk 0:02:46.2]} 13... Bb7 {[%clk 0:02:50]} 14. Nxd6
{[%clk 0:02:42.8]} 14... Qxd6 {[%clk 0:02:49.3]} 15. Ba3 {[%clk 0:02:42.9]}
15... Nb4 {[%clk 0:02:43]} 16. Rb1 {[%clk 0:02:39.8]} 16... a5 {[%clk
0:02:43.1]} 17. Ne5 {[%clk 0:02:29.7]} 17... Rfd8 {[%clk 0:02:36.4]} 18. Bb2
{[%clk 0:02:23.9]} 18... Rac8 {[%clk 0:02:23.4]} 19. Rc1 {[%clk 0:02:17.9]}
19... Nd7 {[%clk 0:02:16.2]} 20. f4 {[%clk 0:02:16.5]} 20... Nxe5 {[%clk
0:02:15.1]} 21. fxe5 {[%clk 0:02:16.7]} 21... Qc6 {[%clk 0:02:15.3]} 22. Bf3
{[%clk 0:02:14.5]} 22... Qc7 {[%clk 0:02:11.9]} 23. Bxb7 {[%clk 0:02:11.9]}
23... Qxb7 {[%clk 0:02:11.8]} 24. Qh5 {[%clk 0:02:10.4]} 24... g6 {[%clk
0:02:04.8]} 25. Qf3 {[%clk 0:01:57.3]} 25... Qd7 {[%clk 0:01:51.2]} 26. Kh2
{[%clk 0:01:49.3]} 26... Rc7 {[%clk 0:01:47.6]} 27. Qb3 {[%clk 0:01:44.9]} 27...
Rdc8 {[%clk 0:01:41.8]} 28. Rfd1 {[%clk 0:01:39.1]} 28... Qe7 {[%clk 0:01:37.7]}
29. d5 {[%clk 0:01:34.5]} 29... exd5 {[%clk 0:01:37.5]} 30. cxd5 {[%clk
0:01:31.7]} 30... Rxc1 {[%clk 0:01:37.2]} 31. Bxc1 {[%clk 0:01:03.7]} 31...
Qxe5+ {[%clk 0:01:35.9]} 32. Kh1 {[%clk 0:01:03.3]} 32... Nxd5 {[%clk
0:01:23.1]} 33. Bb2 {[%clk 0:00:47]} 33... Nc3 {[%clk 0:00:34.8]} 34. Bxc3
{[%clk 0:00:46]} 34... Rxc3 {[%clk 0:00:31.5]} 35. Qxb6 {[%clk 0:00:40.9]} 35...
Re3 {[%clk 0:00:27.8]} 36. Qd8+ {[%clk 0:00:33.9]} 36... Kg7 {[%clk 0:00:27.3]}
37. Qd2 {[%clk 0:00:30.8]} 37... Re2 {[%clk 0:00:24.7]} 38. Qd4 {[%clk
0:00:20.5]} 38... Re1+ {[%clk 0:00:23.1]} 39. Rxe1 {[%clk 0:00:16.1]} 39... Qxd4
{[%clk 0:00:22.8]} 40. Kh2 {[%clk 0:00:15.9]} 40... Qxa4 {[%clk 0:00:23.1]} 41.
Re7 {[%clk 0:00:14.9]} 41... Qb4 {[%clk 0:00:23]} 42. Ra7 {[%clk 0:00:14.3]}
42... Qb8+ {[%clk 0:00:22.5]} 0-1

[Event "Betsys MČR v online bleskovém šachu 2021"]
[Site "Chess.com"]
[Date "2021.04.17"]
[Round "3"]
[White "Mikulas19"]
[Black "Terilka"]
[Result "1/2-1/2"]
[WhiteElo "1879"]
[BlackElo "1526"]
[TimeControl "180+1"]
[EndTime "9:27:10 PDT"]
[Termination "Remíza opakováním pozice"]

1. e4 {[%clk 0:03:00.9]} 1... e6 {[%clk 0:03:00.1]} 2. Nf3 {[%clk 0:02:58.2]}
2... d5 {[%clk 0:03:00.5]} 3. e5 {[%clk 0:02:58.2]} 3... c5 {[%clk 0:03:00]} 4.
b4 {[%clk 0:02:57.8]} 4... cxb4 {[%clk 0:02:58]} 5. a3 {[%clk 0:02:57.4]} 5...
Nc6 {[%clk 0:02:52.4]} 6. axb4 {[%clk 0:02:56.5]} 6... Bxb4 {[%clk 0:02:48.7]}
7. c3 {[%clk 0:02:56.4]} 7... Be7 {[%clk 0:02:49.3]} 8. d4 {[%clk 0:02:56.3]}
8... f6 {[%clk 0:02:47.9]} 9. Bb5 {[%clk 0:02:52.2]} 9... Bd7 {[%clk 0:02:44.2]}
10. Bxc6 {[%clk 0:02:48.9]} 10... bxc6 {[%clk 0:02:45.1]} 11. h4 {[%clk
0:02:25.4]} 11... Qc7 {[%clk 0:02:43.2]} 12. Kf1 {[%clk 0:02:23.4]} 12... fxe5
{[%clk 0:02:24.5]} 13. Nxe5 {[%clk 0:02:21.6]} 13... Nf6 {[%clk 0:02:24.6]} 14.
Bg5 {[%clk 0:02:11.4]} 14... O-O {[%clk 0:02:24.8]} 15. Nd2 {[%clk 0:01:51.2]}
15... c5 {[%clk 0:02:22.3]} 16. Rc1 {[%clk 0:01:39.6]} 16... Bb5+ {[%clk
0:02:12.7]} 17. Kg1 {[%clk 0:01:38.1]} 17... Rac8 {[%clk 0:02:07.3]} 18. Ndf3
{[%clk 0:01:27.5]} 18... c4 {[%clk 0:01:35.3]} 19. Rh3 {[%clk 0:01:24.5]} 19...
Ne4 {[%clk 0:01:28.2]} 20. Bxe7 {[%clk 0:01:19.1]} 20... Qxe7 {[%clk 0:01:29.1]}
21. Qe2 {[%clk 0:00:50.7]} 21... Qa3 {[%clk 0:01:22.8]} 22. Qe3 {[%clk
0:00:49.7]} 22... a5 {[%clk 0:01:11.5]} 23. Ng5 {[%clk 0:00:47.4]} 23... Nxg5
{[%clk 0:01:05.8]} 24. Qxg5 {[%clk 0:00:45.5]} 24... Rf5 {[%clk 0:00:59]} 25.
Qe3 {[%clk 0:00:44.2]} 25... Rcf8 {[%clk 0:00:55.4]} 26. Rf1 {[%clk 0:00:40.5]}
26... Qb2 {[%clk 0:00:53.5]} 27. g4 {[%clk 0:00:36.8]} 27... Rf4 {[%clk
0:00:49.1]} 28. g5 {[%clk 0:00:33]} 28... a4 {[%clk 0:00:44.3]} 29. Ng4 {[%clk
0:00:30.3]} 29... Rxg4+ {[%clk 0:00:42.4]} 30. Kh2 {[%clk 0:00:29.2]} 30... a3
{[%clk 0:00:38]} 31. Qxe6+ {[%clk 0:00:28.1]} 31... Kh8 {[%clk 0:00:35.6]} 32.
Qxg4 {[%clk 0:00:26.4]} 32... Rxf2+ {[%clk 0:00:30.7]} 33. Rxf2 {[%clk
0:00:15.7]} 33... Qxf2+ {[%clk 0:00:31.6]} 34. Kh1 {[%clk 0:00:13.9]} 34... Qf1+
{[%clk 0:00:28.3]} 35. Kh2 {[%clk 0:00:12.1]} 35... Qf2+ {[%clk 0:00:25.7]} 36.
Kh1 {[%clk 0:00:06.4]} 36... Qf1+ {[%clk 0:00:25]} 37. Kh2 {[%clk 0:00:02.5]}
37... Qf2+ {[%clk 0:00:20.4]} 1/2-1/2

[Event "Betsys MČR v online bleskovém šachu 2021"]
[Site "Chess.com"]
[Date "2021.04.17"]
[Round "3"]
[White "Pekibeast"]
[Black "Mikkes33"]
[Result "1-0"]
[WhiteElo "1860"]
[BlackElo "1266"]
[TimeControl "180+1"]
[EndTime "9:27:10 PDT"]
[Termination "Uživatel Pekibeast zvítězil na čas"]

1. e4 {[%clk 0:02:59.5]} 1... c5 {[%clk 0:02:58.3]} 2. c3 {[%clk 0:02:57.2]}
2... Nc6 {[%clk 0:02:57.5]} 3. d4 {[%clk 0:02:57.2]} 3... d5 {[%clk 0:02:54.9]}
4. e5 {[%clk 0:02:56]} 4... cxd4 {[%clk 0:02:50.2]} 5. cxd4 {[%clk 0:02:56.9]}
5... Bf5 {[%clk 0:02:42.5]} 6. Bd3 {[%clk 0:02:52]} 6... Bxd3 {[%clk 0:02:39.7]}
7. Qxd3 {[%clk 0:02:51.4]} 7... f6 {[%clk 0:02:38.3]} 8. Nf3 {[%clk 0:02:30.9]}
8... e6 {[%clk 0:02:34.2]} 9. O-O {[%clk 0:02:30.1]} 9... Nge7 {[%clk
0:02:24.3]} 10. exf6 {[%clk 0:02:28.3]} 10... gxf6 {[%clk 0:02:20]} 11. Re1
{[%clk 0:02:28.4]} 11... Qd7 {[%clk 0:02:06.5]} 12. a3 {[%clk 0:02:19.4]} 12...
Bg7 {[%clk 0:01:57.9]} 13. Nc3 {[%clk 0:02:14.8]} 13... O-O {[%clk 0:01:50.3]}
14. Bf4 {[%clk 0:01:57.6]} 14... Rae8 {[%clk 0:01:45.5]} 15. Bg3 {[%clk
0:01:40.2]} 15... Ng6 {[%clk 0:01:42.4]} 16. Rad1 {[%clk 0:01:37.7]} 16... a6
{[%clk 0:01:40]} 17. Nh4 {[%clk 0:01:29.9]} 17... Nxh4 {[%clk 0:01:35.1]} 18.
Bxh4 {[%clk 0:01:30.8]} 18... b5 {[%clk 0:01:10.3]} 19. Re2 {[%clk 0:01:20]}
19... Na5 {[%clk 0:01:03.5]} 20. Rde1 {[%clk 0:01:13.2]} 20... Nc4 {[%clk
0:00:58.3]} 21. Qh3 {[%clk 0:01:06.2]} 21... f5 {[%clk 0:00:51.5]} 22. Qd3
{[%clk 0:01:04]} 22... Nd6 {[%clk 0:00:34.9]} 23. f3 {[%clk 0:01:00.1]} 23...
Nc4 {[%clk 0:00:25.6]} 24. Bg3 {[%clk 0:00:55.9]} 24... Qa7 {[%clk 0:00:19.9]}
25. Bf2 {[%clk 0:00:53.2]} 25... Qd7 {[%clk 0:00:18.4]} 26. Bg3 {[%clk
0:00:41.8]} 26... Bf6 {[%clk 0:00:15.8]} 27. Be5 {[%clk 0:00:40]} 27... Bxe5
{[%clk 0:00:12.3]} 28. dxe5 {[%clk 0:00:40.6]} 28... Qc6 {[%clk 0:00:10.4]} 29.
f4 {[%clk 0:00:38.4]} 29... Rc8 {[%clk 0:00:07.9]} 30. Rf2 {[%clk 0:00:37]}
30... Rf7 {[%clk 0:00:06.2]} 31. Rf3 {[%clk 0:00:35.6]} 31... Rg7 {[%clk
0:00:06]} 32. Rg3 {[%clk 0:00:35.1]} 32... Rc7 {[%clk 0:00:05.5]} 33. Ne2 {[%clk
0:00:28.9]} 33... a5 {[%clk 0:00:05.5]} 34. Nd4 {[%clk 0:00:29]} 34... Qe8
{[%clk 0:00:04.1]} 35. Re2 {[%clk 0:00:25.2]} 35... b4 {[%clk 0:00:02.8]} 36.
axb4 {[%clk 0:00:25.1]} 36... axb4 {[%clk 0:00:02.4]} 37. Rxg7+ {[%clk
0:00:24.3]} 37... Rxg7 {[%clk 0:00:01.3]} 38. b3 {[%clk 0:00:24.9]} 1-0

[Event "Betsys MČR v online bleskovém šachu 2021"]
[Site "Chess.com"]
[Date "2021.04.17"]
[Round "3"]
[White "Sunnika"]
[Black "zarathutra"]
[Result "1-0"]
[WhiteElo "2316"]
[BlackElo "1823"]
[TimeControl "180+1"]
[EndTime "9:27:11 PDT"]
[Termination "Uživatel Sunnika zvítězil po vzdání soupeře"]

1. d4 {[%clk 0:03:00.9]} 1... Nf6 {[%clk 0:02:59.7]} 2. c4 {[%clk 0:03:01.4]}
2... c5 {[%clk 0:02:59.8]} 3. d5 {[%clk 0:03:01.6]} 3... e6 {[%clk 0:02:58.6]}
4. Nc3 {[%clk 0:03:00.8]} 4... exd5 {[%clk 0:02:58.9]} 5. cxd5 {[%clk
0:03:01.7]} 5... d6 {[%clk 0:02:59.2]} 6. Nf3 {[%clk 0:03:01]} 6... g6 {[%clk
0:02:58.9]} 7. g3 {[%clk 0:03:01.6]} 7... Bg7 {[%clk 0:02:57.4]} 8. Bg2 {[%clk
0:03:02.2]} 8... O-O {[%clk 0:02:54.7]} 9. O-O {[%clk 0:03:02.7]} 9... Na6
{[%clk 0:02:51.1]} 10. Bf4 {[%clk 0:02:55.6]} 10... Nc7 {[%clk 0:02:48]} 11. a4
{[%clk 0:02:53.7]} 11... b6 {[%clk 0:02:44.2]} 12. Re1 {[%clk 0:02:47]} 12...
Bb7 {[%clk 0:02:43]} 13. e4 {[%clk 0:02:45.1]} 13... a6 {[%clk 0:02:41.4]} 14.
Qd3 {[%clk 0:02:22.2]} 14... Qd7 {[%clk 0:02:34]} 15. Bf1 {[%clk 0:01:42.1]}
15... b5 {[%clk 0:01:40.3]} 16. axb5 {[%clk 0:01:40]} 16... axb5 {[%clk
0:01:40.6]} 17. Rad1 {[%clk 0:01:00]} 17... c4 {[%clk 0:01:36.2]} 18. Qc2 {[%clk
0:00:58.3]} 18... Na6 {[%clk 0:01:30.7]} 19. e5 {[%clk 0:00:58]} 19... dxe5
{[%clk 0:01:26.6]} 20. Nxe5 {[%clk 0:00:57.9]} 20... Qd8 {[%clk 0:01:15.2]} 21.
Nc6 {[%clk 0:00:54]} 21... Bxc6 {[%clk 0:01:07.8]} 22. dxc6 {[%clk 0:00:54.9]}
22... Qb6 {[%clk 0:01:01.7]} 23. Be3 {[%clk 0:00:17.3]} 23... Qc7 {[%clk
0:01:00.5]} 24. Bg2 {[%clk 0:00:18.2]} 24... b4 {[%clk 0:00:54.5]} 25. Nb5
{[%clk 0:00:17.5]} 25... Qa5 {[%clk 0:00:53.2]} 26. Qxc4 {[%clk 0:00:16]} 26...
Rac8 {[%clk 0:00:52.2]} 27. Nd6 {[%clk 0:00:13.5]} 27... Rc7 {[%clk 0:00:48.6]}
28. Nb7 {[%clk 0:00:12.7]} 28... Qa4 {[%clk 0:00:29]} 29. Ra1 {[%clk 0:00:12.2]}
29... Qxa1 {[%clk 0:00:18]} 30. Rxa1 {[%clk 0:00:13.1]} 30... Nb8 {[%clk
0:00:18]} 31. Bf4 {[%clk 0:00:10]} 31... Rcc8 {[%clk 0:00:17.5]} 32. Bxb8 {[%clk
0:00:09.7]} 32... Rxb8 {[%clk 0:00:17.7]} 33. c7 {[%clk 0:00:10.6]} 33... Rbc8
{[%clk 0:00:17.8]} 34. Nd6 {[%clk 0:00:09.8]} 34... Ra8 {[%clk 0:00:13.6]} 35.
Rxa8 {[%clk 0:00:08.2]} 35... Rxa8 {[%clk 0:00:13.5]} 36. Bxa8 {[%clk
0:00:09.1]} 1-0

[Event "Betsys MČR v online bleskovém šachu 2021"]
[Site "Chess.com"]
[Date "2021.04.17"]
[Round "3"]
[White "pkozubik"]
[Black "polik1112"]
[Result "1-0"]
[WhiteElo "1141"]
[BlackElo "1420"]
[TimeControl "180+1"]
[EndTime "9:27:12 PDT"]
[Termination "Uživatel pkozubik zvítězil na čas"]

1. e4 {[%clk 0:03:00.9]} 1... e6 {[%clk 0:02:58.7]} 2. d4 {[%clk 0:02:58.9]}
2... d5 {[%clk 0:02:58.6]} 3. e5 {[%clk 0:02:58.5]} 3... c5 {[%clk 0:02:57.7]}
4. c3 {[%clk 0:02:58.1]} 4... Qb6 {[%clk 0:02:56.8]} 5. Nf3 {[%clk 0:02:56]}
5... Nc6 {[%clk 0:02:56.3]} 6. a4 {[%clk 0:02:48.9]} 6... cxd4 {[%clk
0:02:46.3]} 7. cxd4 {[%clk 0:02:47.3]} 7... Nge7 {[%clk 0:02:25.9]} 8. Nc3
{[%clk 0:02:39.8]} 8... Nf5 {[%clk 0:02:19]} 9. Bb5 {[%clk 0:02:26.4]} 9... Bd7
{[%clk 0:02:03.2]} 10. Bxc6 {[%clk 0:02:22.6]} 10... Bxc6 {[%clk 0:02:01.5]} 11.
O-O {[%clk 0:02:16.9]} 11... Be7 {[%clk 0:01:47.3]} 12. a5 {[%clk 0:02:13.4]}
12... Qc7 {[%clk 0:01:43.6]} 13. Bg5 {[%clk 0:01:58.7]} 13... O-O {[%clk
0:01:24.4]} 14. Qd2 {[%clk 0:01:43.8]} 14... Rac8 {[%clk 0:01:02.3]} 15. Rfc1
{[%clk 0:01:25.1]} 15... Bb4 {[%clk 0:00:51.6]} 16. g4 {[%clk 0:01:15.7]} 16...
Ne7 {[%clk 0:00:41]} 17. Nh4 {[%clk 0:01:02.9]} 17... Rfe8 {[%clk 0:00:21.1]}
18. f4 {[%clk 0:00:49.7]} 18... Bxa5 {[%clk 0:00:16.9]} 19. Qf2 {[%clk
0:00:43.5]} 19... Bb6 {[%clk 0:00:15.5]} 20. Rf1 {[%clk 0:00:32.7]} 20... h6
{[%clk 0:00:15]} 21. Bxe7 {[%clk 0:00:23.7]} 21... Qxe7 {[%clk 0:00:14.7]} 22.
f5 {[%clk 0:00:24.6]} 22... exf5 {[%clk 0:00:12.6]} 23. Qxf5 {[%clk 0:00:21.8]}
23... Bd7 {[%clk 0:00:09.9]} 24. Nxd5 {[%clk 0:00:20.6]} 24... Qxh4 {[%clk
0:00:06.3]} 25. e6 {[%clk 0:00:17.7]} 25... Bxe6 {[%clk 0:00:05.3]} 26. Qf4
{[%clk 0:00:13.5]} 26... Qxg4+ {[%clk 0:00:05]} 27. Qxg4 {[%clk 0:00:12.9]}
27... Bxg4 {[%clk 0:00:05.3]} 28. Rae1 {[%clk 0:00:11.6]} 28... Bxd4+ {[%clk
0:00:05.1]} 29. Kg2 {[%clk 0:00:09.6]} 29... Rxe1 {[%clk 0:00:04.2]} 30. Rxe1
{[%clk 0:00:09.8]} 30... Rc2+ {[%clk 0:00:02.9]} 31. Kg3 {[%clk 0:00:09.1]}
31... Be6 {[%clk 0:00:01.8]} 32. Ne7+ {[%clk 0:00:08.6]} 1-0